Workbook

Sheet 2021 Tax year
A1: Schedule Number | B1: Roll Year | C1: District | D1: Parcel Number | E1: Taxable Value
A2: C000921 | B2: 2021 | C2: 005 H2 | D2: 170920220020 | E2: 21678
A3: C051464 | B3: 2021 | C3: 005 H2 | D3: 160904310010 | E3: 4180724
A4: C058880 | B4: 2021 | C4: 005 H2 | D4: 170919440090 | E4: 33788
A5: C062170 | B5: 2021 | C5: 005 H2 | D5: 160904310010 | E5: 592849
A6: C062185 | B6: 2021 | C6: 005 H2 | E6: 525
A7: C062794 | B7: 2021 | C7: 005 H2 | E7: 740
A8: C063337 | B8: 2021 | C8: 005 H2 | E8: 0
E9: =SUM(E2:E7) -> 4830304
A12: C000756 | B12: 2021 | C12: 005F02H2 | D12: 170818120010 | E12: 138669
A13: C001334 | B13: 2021 | C13: 005F02H2 | D13: 769000002300 | E13: 1269278
A14: C001510 | B14: 2021 | C14: 005F02H2 | D14: 170809430010 | E14: 1801037
A15: C003750 | B15: 2021 | C15: 005F02H2 | D15: 753000000500 | E15: 17625
A16: C051693 | B16: 2021 | C16: 005F02H2 | D16: 170808320280 | E16: 4173
A17: C051744 | B17: 2021 | C17: 005F02H2 | E17: 8082
A18: C053948 | B18: 2021 | C18: 005F02H2 | D18: 170808320130 | E18: 127455
A19: C057034 | B19: 2021 | C19: 005F02H2 | D19: 766500004104 | E19: 11529
A20: C057906 | B20: 2021 | C20: 005F02H2 | D20: 766500004104 | E20: 20614
A21: C058261 | B21: 2021 | C21: 005F02H2 | E21: 6232
A22: C058491 | B22: 2021 | C22: 005F02H2 | D22: 170808310020 | E22: 10963
A23: C058726 | B23: 2021 | C23: 005F02H2 | E23: 672
A24: C058858 | B24: 2021 | C24: 005F02H2 | D24: 170912420030 | E24: 8499
A25: C059443 | B25: 2021 | C25: 005F02H2 | D25: 766500004702 | E25: 87866
A26: C059802 | B26: 2021 | C26: 005F02H2 | D26: 770501005701 | E26: 10856
A27: C060183 | B27: 2021 | C27: 005F02H2 | D27: 718200000200 | E27: 31363
A28: C060424 | B28: 2021 | C28: 005F02H2 | D28: 769000002801 | E28: 2398
A29: C060842 | B29: 2021 | C29: 005F02H2 | D29: 753500000702 | E29: 855
A30: C061338 | B30: 2021 | C30: 005F02H2 | D30: 170808320280 | E30: 17672
A31: C061536 | B31: 2021 | C31: 005F02H2 | E31: 1166
A32: C061551 | B32: 2021 | C32: 005F02H2 | D32: 718000001202 | E32: 9115
A33: C061628 | B33: 2021 | C33: 005F02H2 | D33: 770501000101 | E33: 12144
A34: C061657 | B34: 2021 | C34: 005F02H2 | E34: 30738
A35: C061698 | B35: 2021 | C35: 005F02H2 | E35: 7346
A36: C062035 | B36: 2021 | C36: 005F02H2 | E36: 7476
A37: C062247 | B37: 2021 | C37: 005F02H2 | E37: 662
A38: C062250 | B38: 2021 | C38: 005F02H2 | E38: 519
A39: C062271 | B39: 2021 | C39: 005F02H2 | E39: 8751
A40: C062585 | B40: 2021 | C40: 005F02H2 | D40: 718000000704 | E40: 795
A41: C062720 | B41: 2021 | C41: 005F02H2 | D41: 170808320280 | E41: 60964
A42: C062786 | B42: 2021 | C42: 005F02H2 | D42: 718200000200 | E42: 3084
A43: C062815 | B43: 2021 | C43: 005F02H2 | D43: 770501005701 | E43: 512
A44: C062868 | B44: 2021 | C44: 005F02H2 | D44: 766500004002 | E44: 51270
A45: C062954 | B45: 2021 | C45: 005F02H2 | D45: 170808320130 | E45: 664
A46: C062974 | B46: 2021 | C46: 005F02H2 | E46: 1270
A47: C063135 | B47: 2021 | C47: 005F02H2 | D47: 718000001207 | E47: 13114
A48: C063146 | B48: 2021 | C48: 005F02H2 | E48: 7575
A49: C063147 | B49: 2021 | C49: 005F02H2 | D49: 749100001700 | E49: 1042
A50: C063188 | B50: 2021 | C50: 005F02H2 | D50: 170808320170 | E50: 143966
A51: C063300 | B51: 2021 | C51: 005F02H2 | D51: 170912420030 | E51: 722
A52: C063316 | B52: 2021 | C52: 005F02H2 | D52: 170912420020 | E52: 47180
A53: C063317 | B53: 2021 | C53: 005F02H2 | D53: 769000002300 | E53: 487753
A54: C063330 | B54: 2021 | C54: 005F02H2 | D54: 718000000704 | E54: 26501
A55: C063372 | B55: 2021 | C55: 005F02H2 | E55: 1677
A56: C063451 | B56: 2021 | C56: 005F02H2 | D56: 718200000100 | E56: 100000
A57: C063459 | B57: 2021 | C57: 005F02H2 | D57: 769000001501 | E57: 35000
E58: =SUM(E12:E57) -> 4636844
A61: C000633 | B61: 2021 | C61: 005F10H2 | D61: 731000002200 | E61: 11332
A62: C001957 | B62: 2021 | C62: 005F10H2 | D62: 170902330050 | E62: 62100
A63: C002242 | B63: 2021 | C63: 005F10H2 | D63: 180915320010 | E63: 311083
A64: C055292 | B64: 2021 | C64: 005F10H2 | D64: 729001000100 | E64: 43764
A65: C057269 | B65: 2021 | C65: 005F10H2 | D65: 180933440030 | E65: 86198
A66: C058238 | B66: 2021 | C66: 005F10H2 | D66: 731000002200 | E66: 2451
A67: C060419 | B67: 2021 | C67: 005F10H2 | D67: 170911320010 | E67: 1953194
A68: C060735 | B68: 2021 | C68: 005F10H2 | D68: 832500000101 | E68: 86261
A69: C062032 | B69: 2021 | C69: 005F10H2 | E69: 3205
A70: C063133 | B70: 2021 | C70: 005F10H2 | D70: 180933140020 | E70: 270586
A71: C063321 | B71: 2021 | C71: 005F10H2 | D71: 170911320010 | E71: 9521
A72: F051684 | B72: 2021 | C72: 005F10H2 | D72: 700500000500 | E72: 14024
A73: F058673 | B73: 2021 | C73: 005F10H2 | D73: 180911120010 | E73: 2271
E74: =SUM(E61:E73) -> 2855990
A77: C061713 | B77: 2021 | C77: 028 EPH2 | E77: 2586
A80: C004246 | B80: 2021 | C80: 028 H2 | D80: 201126110040 | E80: 24743
A81: C060102 | B81: 2021 | C81: 028 H2 | D81: 181032130000 | E81: 9531
E82: =SUM(E80:E81) -> 34274
A85: C004442 | B85: 2021 | C85: 028F06H2 | D85: 736501000000 | E85: 107243
A86: C054389 | B86: 2021 | C86: 028F06H2 | D86: 736505800001 | E86: 23080
A87: C059509 | B87: 2021 | C87: 028F06H2 | D87: 181136310010 | E87: 61295
A88: C059650 | B88: 2021 | C88: 028F06H2 | D88: 736500400002 | E88: 1452101
A89: C060277 | B89: 2021 | C89: 028F06H2 | D89: 736503800001 | E89: 223964
A90: C060499 | B90: 2021 | C90: 028F06H2 | D90: 181122110010 | E90: 16861
A91: C060553 | B91: 2021 | C91: 028F06H2 | D91: 171006110040 | E91: 83677
A92: C060820 | B92: 2021 | C92: 028F06H2 | D92: 736503400003 | E92: 9490
A93: C061170 | B93: 2021 | C93: 028F06H2 | D93: 181021140010 | E93: 10735
A94: C062157 | B94: 2021 | C94: 028F06H2 | E94: 1813
A95: C062193 | B95: 2021 | C95: 028F06H2 | E95: 1000
A96: C062713 | B96: 2021 | C96: 028F06H2 | D96: 736504200000 | E96: 232351
A97: C062750 | B97: 2021 | C97: 028F06H2 | D97: 181136230050 | E97: 12005
A98: C063134 | B98: 2021 | C98: 028F06H2 | D98: 744000301300 | E98: 306110
E99: =SUM(E85:E98) -> 2541725
A102: C062385 | B102: 2021 | C102: 028F07H2 | E102: 567
A103: F000383 | B103: 2021 | C103: 028F07H2 | D103: 181117230050 | E103: 24332
A104: F001319 | B104: 2021 | C104: 028F07H2 | D104: 181117220040 | E104: 26605
E105: =SUM(E102:E104) -> 51504
A108: C003631 | B108: 2021 | C108: 028F16H2 | D108: 191128230030 | E108: 22444
A109: C057429 | B109: 2021 | C109: 028F16H2 | D109: 181113140010 | E109: 24240
A110: C057954 | B110: 2021 | C110: 028F16H2 | D110: 181103200000 | E110: 270168
A111: C058797 | B111: 2021 | C111: 028F16H2 | D111: 191129210140 | E111: 19386
A112: C060017 | B112: 2021 | C112: 028F16H2 | D112: 191129210140 | E112: 639
A113: C060322 | B113: 2021 | C113: 028F16H2 | E113: 1142
A114: C061259 | B114: 2021 | C114: 028F16H2 | D114: 181017220020 | E114: 80908
A115: C061864 | B115: 2021 | C115: 028F16H2 | E115: 871
A116: C061885 | B116: 2021 | C116: 028F16H2 | E116: 3166
A117: C062187 | B117: 2021 | C117: 028F16H2 | E117: 1449
A118: C062723 | B118: 2021 | C118: 028F16H2 | D118: 191115410020 | E118: 81198
A119: C062881 | B119: 2021 | C119: 028F16H2 | D119: 181017440050 | E119: 61036
E120: =SUM(E108:E119) -> 566647
A123: C003922 | B123: 2021 | C123: 028F17H2 | D123: 055203200800 | E123: 798
A124: C057116 | B124: 2021 | C124: 028F17H2 | D124: 818500400001 | E124: 111535
A125: C058829 | B125: 2021 | C125: 028F17H2 | E125: 2254
A126: C060551 | B126: 2021 | C126: 028F17H2 | D126: 201030110040 | E126: 23274
A127: C060569 | B127: 2021 | C127: 028F17H2 | D127: 201034220080 | E127: 578543
A128: C060852 | B128: 2021 | C128: 028F17H2 | D128: 201019420010 | E128: 93285
A129: C061419 | B129: 2021 | C129: 028F17H2 | D129: 818500400001 | E129: 575
A130: C062183 | B130: 2021 | C130: 028F17H2 | E130: 852
A131: C062390 | B131: 2021 | C131: 028F17H2 | E131: 936
A132: C062506 | B132: 2021 | C132: 028F17H2 | E132: 600
A133: C062737 | B133: 2021 | C133: 028F17H2 | D133: 201027340010 | E133: 33110
A134: C062867 | B134: 2021 | C134: 028F17H2 | D134: 201019420040 | E134: 376088
A135: C063204 | B135: 2021 | C135: 028F17H2 | D135: 191011440020 | E135: 25000
A136: C063250 | B136: 2021 | C136: 028F17H2 | D136: 201029430040 | E136: 71273
E137: =SUM(E123:E136) -> 1318123
A140: C059516 | B140: 2021 | C140: 064 EGH2 | D140: 191224430040 | E140: 27044
A143: C061668 | B143: 2021 | C143: 064 EHH2 | E143: 1293
A147: C060103 | B147: 2021 | C147: 064 H2 | D147: 191225230000 | E147: 18912
A150: C001476 | B150: 2021 | C150: 064F07H2 | D150: 181203330050 | E150: 91159
A151: C001708 | B151: 2021 | C151: 064F07H2 | D151: 191228110020 | E151: 42258
A152: C003616 | B152: 2021 | C152: 064F07H2 | D152: 181215440080 | E152: 146400
A153: C003851 | B153: 2021 | C153: 064F07H2 | E153: 1105
A154: C004201 | B154: 2021 | C154: 064F07H2 | D154: 191204340010 | E154: 204353
A155: C004410 | B155: 2021 | C155: 064F07H2 | D155: 181227120080 | E155: 4111
A156: C050022 | B156: 2021 | C156: 064F07H2 | D156: 787004900000 | E156: 15132
A157: C052099 | B157: 2021 | C157: 064F07H2 | D157: 786500500100 | E157: 72458
A158: C052105 | B158: 2021 | C158: 064F07H2 | D158: 822500100101 | E158: 114694
A159: C052603 | B159: 2021 | C159: 064F07H2 | D159: 709000000600 | E159: 155306
A160: C052762 | B160: 2021 | C160: 064F07H2 | D160: 191228110080 | E160: 27986
A161: C057309 | B161: 2021 | C161: 064F07H2 | D161: 181227120050 | E161: 17193
A162: C057708 | B162: 2021 | C162: 064F07H2 | D162: 191209340120 | E162: 49972
A163: C058228 | B163: 2021 | C163: 064F07H2 | D163: 181215440100 | E163: 38801
A164: C058262 | B164: 2021 | C164: 064F07H2 | E164: 3691
A165: C058486 | B165: 2021 | C165: 064F07H2 | D165: 181215440070 | E165: 29405
A166: C058704 | B166: 2021 | C166: 064F07H2 | E166: 2015
A167: C058857 | B167: 2021 | C167: 064F07H2 | D167: 181210440000 | E167: 3395
A168: C059085 | B168: 2021 | C168: 064F07H2 | D168: 181215440050 | E168: 36129
A169: C059350 | B169: 2021 | C169: 064F07H2 | D169: 763500100101 | E169: 9745
A170: C059843 | B170: 2021 | C170: 064F07H2 | D170: 191222320030 | E170: 100510
A171: C059857 | B171: 2021 | C171: 064F07H2 | D171: 786501100200 | E171: 9159
A172: C060211 | B172: 2021 | C172: 064F07H2 | D172: 181227120040 | E172: 9207
A173: C060321 | B173: 2021 | C173: 064F07H2 | E173: 1831
A174: C060482 | B174: 2021 | C174: 064F07H2 | D174: 788002800000 | E174: 25335
A175: C060522 | B175: 2021 | C175: 064F07H2 | D175: 787003600001 | E175: 10644
A176: C060537 | B176: 2021 | C176: 064F07H2 | E176: 7132
A177: C060571 | B177: 2021 | C177: 064F07H2 | D177: 181210330010 | E177: 17726
A178: C060729 | B178: 2021 | C178: 064F07H2 | E178: 1319
A179: C061118 | B179: 2021 | C179: 064F07H2 | D179: 181222130040 | E179: 314652
A180: C061346 | B180: 2021 | C180: 064F07H2 | E180: 5733
A181: C061667 | B181: 2021 | C181: 064F07H2 | E181: 139142
A182: C062001 | B182: 2021 | C182: 064F07H2 | E182: 2086
A183: C062178 | B183: 2021 | C183: 064F07H2 | E183: 1844
A184: C062265 | B184: 2021 | C184: 064F07H2 | E184: 1348
A185: C062270 | B185: 2021 | C185: 064F07H2 | E185: 1855
A186: C062376 | B186: 2021 | C186: 064F07H2 | E186: 999
A187: C062478 | B187: 2021 | C187: 064F07H2 | E187: 10420
A188: C062543 | B188: 2021 | C188: 064F07H2 | E188: 67908
A189: C062545 | B189: 2021 | C189: 064F07H2 | D189: 181222130040 | E189: 158086
A190: C062902 | B190: 2021 | C190: 064F07H2 | D190: 181222120040 | E190: 4186
A191: C062921 | B191: 2021 | C191: 064F07H2 | D191: 181215440060 | E191: 36623
A192: C063085 | B192: 2021 | C192: 064F07H2 | E192: 19840
A193: C063089 | B193: 2021 | C193: 064F07H2 | E193: 10645
A194: C063271 | B194: 2021 | C194: 064F07H2 | D194: 750505200000 | E194: 7433
A195: C063303 | B195: 2021 | C195: 064F07H2 | D195: 181215440050 | E195: 918
A196: C063370 | B196: 2021 | C196: 064F07H2 | E196: 50290
A197: C063457 | B197: 2021 | C197: 064F07H2 | D197: 191228140130 | E197: 10846
E198: =SUM(E150:E197) -> 2093025
A201: C001477 | B201: 2021 | C201: 064F08H2 | D201: 795500400802 | E201: 131628
A202: C001999 | B202: 2021 | C202: 064F08H2 | D202: 782500401100 | E202: 18668
A203: C002033 | B203: 2021 | C203: 064F08H2 | D203: 821002000100 | E203: 310315
A204: C002068 | B204: 2021 | C204: 064F08H2 | D204: 782501400300 | E204: 77708
A205: C002188 | B205: 2021 | C205: 064F08H2 | D205: 201208410020 | E205: 102567
A206: C051594 | B206: 2021 | C206: 064F08H2 | D206: 751200100100 | E206: 57129
A207: C052106 | B207: 2021 | C207: 064F08H2 | D207: 795500700800 | E207: 36733
A208: C054508 | B208: 2021 | C208: 064F08H2 | D208: 201220130050 | E208: 18757
A209: C056307 | B209: 2021 | C209: 064F08H2 | D209: 719000500600 | E209: 214455
A210: C057364 | B210: 2021 | C210: 064F08H2 | D210: 795500701400 | E210: 12099
A211: C057456 | B211: 2021 | C211: 064F08H2 | D211: 795500100200 | E211: 4354
A212: C058566 | B212: 2021 | C212: 064F08H2 | E212: 4266
A213: C058703 | B213: 2021 | C213: 064F08H2 | E213: 5540
A214: C058828 | B214: 2021 | C214: 064F08H2 | E214: 3364
A215: C058862 | B215: 2021 | C215: 064F08H2 | D215: 201232110020 | E215: 43991
A216: C059378 | B216: 2021 | C216: 064F08H2 | D216: 795500800100 | E216: 7851
A217: C059865 | B217: 2021 | C217: 064F08H2 | D217: 795500601700 | E217: 150936
A218: C060331 | B218: 2021 | C218: 064F08H2 | E218: 1811
A219: C060532 | B219: 2021 | C219: 064F08H2 | D219: 796000100000 | E219: 4827
A220: C060574 | B220: 2021 | C220: 064F08H2 | D220: 191204210010 | E220: 17497
A221: C060880 | B221: 2021 | C221: 064F08H2 | D221: 795500700100 | E221: 48037
A222: C061331 | B222: 2021 | C222: 064F08H2 | D222: 751200100100 | E222: 12119
A223: C061374 | B223: 2021 | C223: 064F08H2 | E223: 892
A224: C061383 | B224: 2021 | C224: 064F08H2 | E224: 1636
A225: C061942 | B225: 2021 | C225: 064F08H2 | E225: 185876
A226: C062031 | B226: 2021 | C226: 064F08H2 | E226: 5853
A227: C062086 | B227: 2021 | C227: 064F08H2 | D227: 201229140010 | E227: 19243
... 1835 more rows
